[Event "Early-Titled-Tuesday-Blitz-June-18-2024"]
[Site "Chess.com"]
[Date "2024.06.18"]
[Round "1"]
[White "BirdMaster3000"]
[Black "sansanathalia"]
[Result "1-0"]
[WhiteElo "2773"]
[BlackElo "2437"]
[TimeControl "180+1"]
[EndTime "8:07:28 PDT"]
[Termination "BirdMaster3000 won by resignation"]

1. f4 {[%clk 0:03:00.9]} 1... Nf6 {[%clk 0:02:54.4]} 2. Nf3 {[%clk 0:03:00.6]}
2... e6 {[%clk 0:02:48.6]} 3. c4 {[%clk 0:03:00]} 3... d5 {[%clk 0:02:45]} 4. d4
{[%clk 0:02:55.9]} 4... Be7 {[%clk 0:02:35]} 5. Nc3 {[%clk 0:02:54.9]} 5... O-O
{[%clk 0:02:34.2]} 6. e3 {[%clk 0:02:50.8]} 6... b6 {[%clk 0:02:21.4]} 7. Be2
{[%clk 0:02:48.7]} 7... Bb7 {[%clk 0:02:12.8]} 8. cxd5 {[%clk 0:02:34.7]} 8...
exd5 {[%clk 0:02:09.2]} 9. O-O {[%clk 0:02:34.7]} 9... Nbd7 {[%clk 0:02:07.6]}
10. Ne5 {[%clk 0:02:33.7]} 10... c5 {[%clk 0:02:05.3]} 11. Bd3 {[%clk
0:02:33.8]} 11... Ne4 {[%clk 0:01:50.9]} 12. Qf3 {[%clk 0:02:13]} 12... f5
{[%clk 0:01:42.6]} 13. Qh3 {[%clk 0:02:06.2]} 13... Nxe5 {[%clk 0:01:36.1]} 14.
fxe5 {[%clk 0:02:05.4]} 14... Qd7 {[%clk 0:01:23.7]} 15. Nxe4 {[%clk 0:01:36.6]}
15... dxe4 {[%clk 0:01:20.6]} 16. Bc4+ {[%clk 0:01:37.2]} 16... Bd5 {[%clk
0:01:18.1]} 17. Be2 {[%clk 0:01:30.4]} 17... cxd4 {[%clk 0:01:15.5]} 18. exd4
{[%clk 0:01:30.5]} 18... Be6 {[%clk 0:01:15.8]} 19. Be3 {[%clk 0:01:22.3]} 19...
Rac8 {[%clk 0:00:55.9]} 20. Qg3 {[%clk 0:01:12]} 20... Rc2 {[%clk 0:00:51.1]}
21. Rf2 {[%clk 0:01:11.9]} 21... Rxb2 {[%clk 0:00:38.4]} 22. Rd1 {[%clk
0:01:11.4]} 22... Bd5 {[%clk 0:00:32.6]} 23. a4 {[%clk 0:00:49.6]} 23... Qxa4
{[%clk 0:00:16.7]} 24. Rdf1 {[%clk 0:00:48.9]} 24... Rxe2 {[%clk 0:00:13.8]} 25.
Bh6 {[%clk 0:00:41.2]} 25... Rf7 {[%clk 0:00:13.3]} 26. Rxe2 {[%clk 0:00:41.3]}
26... Bc4 {[%clk 0:00:13.3]} 27. Ref2 {[%clk 0:00:38.7]} 27... Bxf1 {[%clk
0:00:13.1]} 28. e6 {[%clk 0:00:39.3]} 28... g6 {[%clk 0:00:09.1]} 29. exf7+
{[%clk 0:00:39.2]} 29... Kxf7 {[%clk 0:00:09.4]} 30. Rxf1 {[%clk 0:00:38.1]}
30... Qxd4+ {[%clk 0:00:09.2]} 31. Be3 {[%clk 0:00:37]} 31... Qd3 {[%clk
0:00:08.3]} 32. Qh3 {[%clk 0:00:35.6]} 32... Kg8 {[%clk 0:00:08.3]} 33. Rc1
{[%clk 0:00:27.6]} 33... Qd7 {[%clk 0:00:07]} 34. Qg3 {[%clk 0:00:25.7]} 34...
Bd6 {[%clk 0:00:07]} 35. Rd1 {[%clk 0:00:24.6]} 35... Bxg3 {[%clk 0:00:06.8]}
36. Rxd7 {[%clk 0:00:25.2]} 36... Be5 {[%clk 0:00:06.5]} 37. Rxa7 {[%clk
0:00:25.4]} 37... f4 {[%clk 0:00:06.9]} 38. Bxb6 {[%clk 0:00:25.5]} 38... e3
{[%clk 0:00:06.8]} 39. Re7 {[%clk 0:00:24.9]} 39... Bc3 {[%clk 0:00:06.5]} 40.
Re4 {[%clk 0:00:23.2]} 40... g5 {[%clk 0:00:06.3]} 41. h4 {[%clk 0:00:23.4]}
41... h6 {[%clk 0:00:06.3]} 42. hxg5 {[%clk 0:00:23.3]} 42... hxg5 {[%clk
0:00:07.2]} 43. g3 {[%clk 0:00:23.8]} 43... Bd2 {[%clk 0:00:05.8]} 44. gxf4
{[%clk 0:00:22.4]} 44... gxf4 {[%clk 0:00:06]} 45. Kg2 {[%clk 0:00:22.2]} 45...
Kh7 {[%clk 0:00:04.7]} 46. Kf3 {[%clk 0:00:22.4]} 46... Kg6 {[%clk 0:00:04.9]}
47. Bc7 {[%clk 0:00:22.9]} 47... Kg7 {[%clk 0:00:03.4]} 48. Bxf4 {[%clk
0:00:22.8]} 1-0

[Event "Early-Titled-Tuesday-Blitz-June-18-2024"]
[Site "Chess.com"]
[Date "2024.06.18"]
[Round "1"]
[White "ChessFanNM"]
[Black "hellokostya"]
[Result "0-1"]
[WhiteElo "2302"]
[BlackElo "2633"]
[TimeControl "180+1"]
[EndTime "8:07:31 PDT"]
[Termination "hellokostya won on time"]

1. Nf3 {[%clk 0:02:51.8]} 1... Nf6 {[%clk 0:02:52.5]} 2. c4 {[%clk 0:02:48.9]}
2... g6 {[%clk 0:02:53.3]} 3. Nc3 {[%clk 0:02:48.4]} 3... Bg7 {[%clk 0:02:54.1]}
4. e4 {[%clk 0:02:48.9]} 4... d6 {[%clk 0:02:54.6]} 5. d4 {[%clk 0:02:48.8]}
5... O-O {[%clk 0:02:55.4]} 6. Be2 {[%clk 0:02:48.9]} 6... e5 {[%clk 0:02:55.1]}
7. O-O {[%clk 0:02:43]} 7... h6 {[%clk 0:02:50]} 8. dxe5 {[%clk 0:02:39.3]} 8...
dxe5 {[%clk 0:02:50.9]} 9. Qxd8 {[%clk 0:02:39]} 9... Rxd8 {[%clk 0:02:51.8]}
10. Nd5 {[%clk 0:02:35.3]} 10... Na6 {[%clk 0:02:45.3]} 11. Nxf6+ {[%clk
0:02:19]} 11... Bxf6 {[%clk 0:02:45.1]} 12. Bxh6 {[%clk 0:02:19.4]} 12... Be6
{[%clk 0:02:44.1]} 13. Bg5 {[%clk 0:02:03.4]} 13... Kg7 {[%clk 0:02:42.8]} 14.
Rfd1 {[%clk 0:01:54.6]} 14... Nc5 {[%clk 0:02:42.4]} 15. Bxf6+ {[%clk
0:01:39.3]} 15... Kxf6 {[%clk 0:02:43.3]} 16. Ne1 {[%clk 0:01:37.2]} 16... Nxe4
{[%clk 0:02:39.2]} 17. Bf3 {[%clk 0:01:35.5]} 17... Nd2 {[%clk 0:02:14.5]} 18.
Bxb7 {[%clk 0:01:22.3]} 18... Rab8 {[%clk 0:02:14.5]} 19. Bd5 {[%clk 0:01:18.1]}
19... Bxd5 {[%clk 0:02:14.2]} 20. Rxd2 {[%clk 0:01:14]} 20... Bxc4 {[%clk
0:02:13.8]} 21. Rc2 {[%clk 0:01:08.3]} 21... Be6 {[%clk 0:01:57.2]} 22. b3
{[%clk 0:01:05.3]} 22... Rd7 {[%clk 0:01:53]} 23. Rac1 {[%clk 0:01:03.9]} 23...
Rb7 {[%clk 0:01:44.1]} 24. Kf1 {[%clk 0:01:03.5]} 24... Bf5 {[%clk 0:01:41.6]}
25. Rc6+ {[%clk 0:00:59.1]} 25... Ke7 {[%clk 0:01:42]} 26. Nf3 {[%clk
0:00:58.3]} 26... f6 {[%clk 0:01:39.5]} 27. Ke2 {[%clk 0:00:56.8]} 27... Be4
{[%clk 0:01:37.5]} 28. R6c5 {[%clk 0:00:54.5]} 28... c6 {[%clk 0:01:32.6]} 29.
Ke3 {[%clk 0:00:54.1]} 29... Bd5 {[%clk 0:01:30.1]} 30. Nd2 {[%clk 0:00:53.1]}
30... Ke6 {[%clk 0:01:24.9]} 31. f3 {[%clk 0:00:53]} 31... Rh7 {[%clk
0:01:24.6]} 32. h3 {[%clk 0:00:52.3]} 32... Rb5 {[%clk 0:01:19.7]} 33. R1c3
{[%clk 0:00:40.2]} 33... Rhb7 {[%clk 0:01:11.3]} 34. Rxb5 {[%clk 0:00:24.5]}
34... cxb5 {[%clk 0:01:12.2]} 35. Rc8 {[%clk 0:00:23]} 35... Kd7 {[%clk
0:01:09]} 36. Rf8 {[%clk 0:00:18.2]} 36... Ke7 {[%clk 0:01:08.7]} 37. Rc8 {[%clk
0:00:18.3]} 37... a5 {[%clk 0:01:06.9]} 38. Kd3 {[%clk 0:00:16.6]} 38... a4
{[%clk 0:01:05.4]} 39. Rc5 {[%clk 0:00:10.3]} 39... Kd6 {[%clk 0:01:03.8]} 40.
Rc8 {[%clk 0:00:09.2]} 40... Kd7 {[%clk 0:00:59.3]} 41. Rc5 {[%clk 0:00:08.6]}
41... Be6 {[%clk 0:00:58.1]} 42. Kc3 {[%clk 0:00:06.6]} 42... b4+ {[%clk
0:00:52.7]} 43. Kd3 {[%clk 0:00:06.3]} 43... Kd6 {[%clk 0:00:53.6]} 44. Rc1
{[%clk 0:00:05.2]} 44... Bf5+ {[%clk 0:00:51.3]} 45. Ke3 {[%clk 0:00:05.3]}
45... Be6 {[%clk 0:00:48.9]} 46. Kd3 {[%clk 0:00:05]} 46... Ra7 {[%clk
0:00:41.8]} 47. Nc4+ {[%clk 0:00:03]} 47... Ke7 {[%clk 0:00:42.1]} 48. Nb6
{[%clk 0:00:01.4]} 48... axb3 {[%clk 0:00:40.4]} 49. axb3 {[%clk 0:00:01.6]}
49... Ra2 {[%clk 0:00:38.8]} 50. Rc2 {[%clk 0:00:01.4]} 50... Bxb3 {[%clk
0:00:37.5]} 0-1

[Event "Early-Titled-Tuesday-Blitz-June-18-2024"]
[Site "Chess.com"]
[Date "2024.06.18"]
[Round "1"]
[White "atbenina64"]
[Black "betta2004"]
[Result "1-0"]
[WhiteElo "2828"]
[BlackElo "2471"]
[TimeControl "180+1"]
[EndTime "8:07:33 PDT"]
[Termination "atbenina64 won by checkmate"]

1. c4 {[%clk 0:03:00.5]} 1... b6 {[%clk 0:02:53.8]} 2. Nc3 {[%clk 0:02:58.2]}
2... Bb7 {[%clk 0:02:54.7]} 3. e4 {[%clk 0:02:56.4]} 3... c5 {[%clk 0:02:39.9]}
4. Nf3 {[%clk 0:02:53.9]} 4... Nc6 {[%clk 0:02:27.8]} 5. d4 {[%clk 0:02:52.7]}
5... cxd4 {[%clk 0:02:16.8]} 6. Nxd4 {[%clk 0:02:53.6]} 6... d6 {[%clk
0:02:17.4]} 7. Be3 {[%clk 0:02:47.9]} 7... Nf6 {[%clk 0:01:36.8]} 8. f3 {[%clk
0:02:42.4]} 8... e6 {[%clk 0:01:30.6]} 9. Be2 {[%clk 0:02:40.3]} 9... Qd7 {[%clk
0:01:24.8]} 10. Qd2 {[%clk 0:02:37.6]} 10... Be7 {[%clk 0:01:22.1]} 11. O-O
{[%clk 0:02:32.4]} 11... O-O {[%clk 0:01:22.1]} 12. Rfd1 {[%clk 0:02:31.1]}
12... Rfd8 {[%clk 0:01:21.3]} 13. Rac1 {[%clk 0:02:29.6]} 13... Rac8 {[%clk
0:01:15.2]} 14. b3 {[%clk 0:02:25.5]} 14... Bf8 {[%clk 0:01:10.2]} 15. Bf1
{[%clk 0:02:23.8]} 15... g6 {[%clk 0:01:10.4]} 16. Nxc6 {[%clk 0:02:22]} 16...
Bxc6 {[%clk 0:01:08.4]} 17. Bg5 {[%clk 0:02:12.9]} 17... Bg7 {[%clk 0:01:07]}
18. Kh1 {[%clk 0:02:12.6]} 18... Qb7 {[%clk 0:01:00.2]} 19. Nb5 {[%clk
0:02:10.8]} 19... Bxb5 {[%clk 0:00:59]} 20. cxb5 {[%clk 0:02:10.6]} 20... Rd7
{[%clk 0:00:49.3]} 21. Rc4 {[%clk 0:01:59.4]} 21... d5 {[%clk 0:00:43.3]} 22.
Bxf6 {[%clk 0:01:42.1]} 22... Bxf6 {[%clk 0:00:41.4]} 23. Rxc8+ {[%clk
0:01:38.6]} 23... Qxc8 {[%clk 0:00:40.6]} 24. Bc4 {[%clk 0:01:34.6]} 24... d4
{[%clk 0:00:35.5]} 25. f4 {[%clk 0:01:35]} 25... Bg7 {[%clk 0:00:27.8]} 26. f5
{[%clk 0:01:31.2]} 26... exf5 {[%clk 0:00:25.5]} 27. exf5 {[%clk 0:01:31.4]}
27... Qc5 {[%clk 0:00:26]} 28. Rf1 {[%clk 0:01:27.8]} 28... Rd6 {[%clk
0:00:20.4]} 29. fxg6 {[%clk 0:01:27.2]} 29... hxg6 {[%clk 0:00:17.5]} 30. Rxf7
{[%clk 0:01:24]} 30... Kh7 {[%clk 0:00:16.6]} 31. Qd3 {[%clk 0:01:23.1]} 31...
Qg5 {[%clk 0:00:09.7]} 32. Rf3 {[%clk 0:01:16.4]} 32... Rf6 {[%clk 0:00:06.9]}
33. h3 {[%clk 0:01:03.3]} 33... Rxf3 {[%clk 0:00:06.6]} 34. Qxf3 {[%clk
0:01:04.2]} 34... Qe3 {[%clk 0:00:07.1]} 35. Qd1 {[%clk 0:00:59.2]} 35... g5
{[%clk 0:00:05.8]} 36. Qh5+ {[%clk 0:00:57.4]} 36... Bh6 {[%clk 0:00:05.2]} 37.
Qf7+ {[%clk 0:00:58.1]} 37... Bg7 {[%clk 0:00:05.7]} 38. Qf5+ {[%clk 0:00:56.8]}
38... Kh6 {[%clk 0:00:06.1]} 39. Qb1 {[%clk 0:00:43.6]} 39... g4 {[%clk
0:00:05.1]} 40. hxg4 {[%clk 0:00:40.7]} 40... Be5 {[%clk 0:00:05.6]} 41. Bg8
{[%clk 0:00:34]} 41... Qg3 {[%clk 0:00:03.3]} 42. Qh7+ {[%clk 0:00:32.7]} 42...
Kg5 {[%clk 0:00:03.8]} 43. Qf5+ {[%clk 0:00:29.4]} 43... Kh6 {[%clk 0:00:04.3]}
44. g5+ {[%clk 0:00:20.5]} 44... Qxg5 {[%clk 0:00:04.4]} 45. Qh7# {[%clk
0:00:20.7]} 1-0

[Event "Early-Titled-Tuesday-Blitz-June-18-2024"]
[Site "Chess.com"]
[Date "2024.06.18"]
[Round "1"]
[White "EddieUrquhart"]
[Black "Ranindu2003"]
[Result "1-0"]
[WhiteElo "2425"]
[BlackElo "2709"]
[TimeControl "180+1"]
[EndTime "8:07:34 PDT"]
[Termination "EddieUrquhart won by resignation"]

1. e4 {[%clk 0:02:54.9]} 1... c5 {[%clk 0:02:57.6]} 2. Nc3 {[%clk 0:02:54.6]}
2... e6 {[%clk 0:02:56.1]} 3. d4 {[%clk 0:02:54.2]} 3... cxd4 {[%clk 0:02:55.7]}
4. Qxd4 {[%clk 0:02:55.1]} 4... Nc6 {[%clk 0:02:56.3]} 5. Qd3 {[%clk 0:02:55.2]}
5... Nf6 {[%clk 0:02:55.9]} 6. Bf4 {[%clk 0:02:53.8]} 6... Bb4 {[%clk
0:02:54.7]} 7. O-O-O {[%clk 0:02:53.1]} 7... O-O {[%clk 0:02:50.5]} 8. f3 {[%clk
0:02:53.2]} 8... h6 {[%clk 0:02:46]} 9. Kb1 {[%clk 0:02:53]} 9... e5 {[%clk
0:02:44.7]} 10. Be3 {[%clk 0:02:49.2]} 10... d6 {[%clk 0:02:44.6]} 11. Nge2
{[%clk 0:02:43.1]} 11... Be6 {[%clk 0:02:42.2]} 12. g4 {[%clk 0:02:37.6]} 12...
Qa5 {[%clk 0:02:23.6]} 13. g5 {[%clk 0:02:36.1]} 13... Bxc3 {[%clk 0:02:07.9]}
14. Nxc3 {[%clk 0:02:35.4]} 14... Nb4 {[%clk 0:02:01.1]} 15. Qb5 {[%clk
0:02:17.2]} 15... Qxb5 {[%clk 0:01:58]} 16. Bxb5 {[%clk 0:02:16.4]} 16... hxg5
{[%clk 0:01:55.5]} 17. Bxg5 {[%clk 0:02:17.3]} 17... a6 {[%clk 0:01:49.5]} 18.
Ba4 {[%clk 0:02:07.4]} 18... Rfd8 {[%clk 0:01:49.2]} 19. Rhg1 {[%clk 0:02:06]}
19... Kf8 {[%clk 0:01:49.1]} 20. Bb3 {[%clk 0:02:03.6]} 20... Rac8 {[%clk
0:01:40.5]} 21. Nd5 {[%clk 0:01:53.4]} 21... Nbxd5 {[%clk 0:01:37.9]} 22. Bxd5
{[%clk 0:01:52.9]} 22... Bxd5 {[%clk 0:01:35.7]} 23. exd5 {[%clk 0:01:38.8]}
23... Rc5 {[%clk 0:01:29.9]} 24. Bxf6 {[%clk 0:01:37.6]} 24... gxf6 {[%clk
0:01:30.8]} 25. h4 {[%clk 0:01:33.9]} 25... Rdc8 {[%clk 0:01:27.1]} 26. c3
{[%clk 0:01:33.1]} 26... Rc4 {[%clk 0:01:26.9]} 27. Rg4 {[%clk 0:01:31.1]} 27...
Rxg4 {[%clk 0:01:25.2]} 28. fxg4 {[%clk 0:01:31]} 28... Rc4 {[%clk 0:01:26.1]}
29. Rg1 {[%clk 0:01:30.2]} 29... Rf4 {[%clk 0:01:09.5]} 30. Rg2 {[%clk
0:01:29.2]} 30... Ke7 {[%clk 0:01:05]} 31. Kc2 {[%clk 0:01:29.4]} 31... f5
{[%clk 0:01:02.5]} 32. gxf5 {[%clk 0:01:18.7]} 32... Rxh4 {[%clk 0:01:03.4]} 33.
Rg8 {[%clk 0:01:16]} 33... Rf4 {[%clk 0:00:44.3]} 34. Rb8 {[%clk 0:01:14.6]}
34... Rxf5 {[%clk 0:00:43.8]} 35. Rxb7+ {[%clk 0:01:14.8]} 35... Kd8 {[%clk
0:00:43]} 36. Ra7 {[%clk 0:01:14.1]} 36... Rf4 {[%clk 0:00:38.1]} 37. Rxa6
{[%clk 0:01:13.1]} 37... Kc7 {[%clk 0:00:37.9]} 38. b4 {[%clk 0:01:05.2]} 38...
f5 {[%clk 0:00:37.4]} 39. a4 {[%clk 0:01:00.6]} 39... Rh4 {[%clk 0:00:34.7]} 40.
Ra7+ {[%clk 0:01:00]} 40... Kb8 {[%clk 0:00:31]} 41. Rd7 {[%clk 0:00:59.7]}
41... Rh6 {[%clk 0:00:30.3]} 42. b5 {[%clk 0:00:58.7]} 42... Kc8 {[%clk
0:00:30.3]} 43. Rf7 {[%clk 0:00:58.7]} 43... f4 {[%clk 0:00:30.7]} 44. a5 {[%clk
0:00:59.1]} 44... Kd8 {[%clk 0:00:24.1]} 45. a6 {[%clk 0:00:58.9]} 45... Ke8
{[%clk 0:00:24.6]} 46. Rc7 {[%clk 0:00:50.1]} 46... Rh1 {[%clk 0:00:21.5]} 47.
b6 {[%clk 0:00:48.1]} 47... Kd8 {[%clk 0:00:19.7]} 48. Rf7 {[%clk 0:00:41]}
48... Ra1 {[%clk 0:00:19.1]} 49. a7 {[%clk 0:00:40.7]} 49... f3 {[%clk
0:00:15.5]} 50. a8=Q+ {[%clk 0:00:29]} 50... Rxa8 {[%clk 0:00:14.6]} 51. Rf8+
{[%clk 0:00:29.5]} 51... Ke7 {[%clk 0:00:15.3]} 52. Rxa8 {[%clk 0:00:30.4]}
52... e4 {[%clk 0:00:14]} 53. b7 {[%clk 0:00:29.9]} 53... e3 {[%clk 0:00:14.5]}
54. b8=Q {[%clk 0:00:29.9]} 54... e2 {[%clk 0:00:15.4]} 1-0

[Event "Early-Titled-Tuesday-Blitz-June-18-2024"]
[Site "Chess.com"]
[Date "2024.06.18"]
[Round "1"]
[White "sanbruh"]
[Black "NikitaShnadrygin"]
[Result "0-1"]
[WhiteElo "2436"]
[BlackElo "2771"]
[TimeControl "180+1"]
[EndTime "8:07:35 PDT"]
[Termination "NikitaShnadrygin won by resignation"]

1. e4 {[%clk 0:03:00.9]} 1... c5 {[%clk 0:03:00.1]} 2. Nf3 {[%clk 0:03:00.7]}
2... e6 {[%clk 0:02:58]} 3. c3 {[%clk 0:03:00.4]} 3... Nf6 {[%clk 0:02:57.9]} 4.
Bd3 {[%clk 0:02:59.6]} 4... d5 {[%clk 0:02:58]} 5. exd5 {[%clk 0:03:00.5]} 5...
exd5 {[%clk 0:02:55.6]} 6. O-O {[%clk 0:02:59.4]} 6... Be7 {[%clk 0:02:55.3]} 7.
h3 {[%clk 0:02:58.7]} 7... O-O {[%clk 0:02:55.2]} 8. Bc2 {[%clk 0:02:58.2]} 8...
d4 {[%clk 0:02:55.5]} 9. d3 {[%clk 0:02:58]} 9... Nc6 {[%clk 0:02:55.2]} 10. Bf4
{[%clk 0:02:55.7]} 10... b6 {[%clk 0:02:53.5]} 11. Na3 {[%clk 0:02:50.1]} 11...
Nd5 {[%clk 0:02:50.3]} 12. Bd2 {[%clk 0:02:46.9]} 12... dxc3 {[%clk 0:02:50.8]}
13. bxc3 {[%clk 0:02:46.6]} 13... Bf6 {[%clk 0:02:50.1]} 14. Ba4 {[%clk
0:02:10.3]} 14... Bb7 {[%clk 0:02:42.9]} 15. Rc1 {[%clk 0:02:09.6]} 15... a6
{[%clk 0:02:41.4]} 16. Bxc6 {[%clk 0:01:52.6]} 16... Bxc6 {[%clk 0:02:41.3]} 17.
d4 {[%clk 0:01:51.7]} 17... cxd4 {[%clk 0:02:19.2]} 18. cxd4 {[%clk 0:01:51.5]}
18... Bb7 {[%clk 0:02:17]} 19. Nc4 {[%clk 0:01:51.1]} 19... h6 {[%clk
0:02:10.1]} 20. Re1 {[%clk 0:01:45.3]} 20... Rc8 {[%clk 0:02:09]} 21. Qb3 {[%clk
0:01:41.2]} 21... b5 {[%clk 0:02:06.1]} 22. Nce5 {[%clk 0:01:40.1]} 22... Qd6
{[%clk 0:02:00.2]} 23. a4 {[%clk 0:01:38]} 23... Nc7 {[%clk 0:01:22.1]} 24. Bb4
{[%clk 0:01:30]} 24... Qd5 {[%clk 0:01:04]} 25. Qxd5 {[%clk 0:01:28.5]} 25...
Nxd5 {[%clk 0:01:04.9]} 26. Bxf8 {[%clk 0:01:28.3]} 26... Rxf8 {[%clk
0:01:05.8]} 27. axb5 {[%clk 0:01:25.8]} 27... axb5 {[%clk 0:01:04.8]} 28. Nd7
{[%clk 0:01:26.4]} 28... Rd8 {[%clk 0:01:05.1]} 29. Nxf6+ {[%clk 0:01:25.8]}
29... gxf6 {[%clk 0:01:06]} 30. Nh4 {[%clk 0:01:13.9]} 30... Nf4 {[%clk
0:00:55.5]} 31. Re7 {[%clk 0:01:08.4]} 31... Bd5 {[%clk 0:00:53.9]} 32. Nf5
{[%clk 0:01:01.3]} 32... b4 {[%clk 0:00:51.6]} 33. Nxh6+ {[%clk 0:00:44.4]}
33... Kf8 {[%clk 0:00:50.1]} 34. Re3 {[%clk 0:00:33.5]} 34... Nxg2 {[%clk
0:00:40.3]} 35. Rg3 {[%clk 0:00:32.4]} 35... Nf4 {[%clk 0:00:40.9]} 36. Rg8+
{[%clk 0:00:32.5]} 36... Ke7 {[%clk 0:00:41.1]} 37. Rxd8 {[%clk 0:00:32.9]}
37... Kxd8 {[%clk 0:00:41.2]} 38. Kh2 {[%clk 0:00:29.2]} 38... Nd3 {[%clk
0:00:37.2]} 39. Rb1 {[%clk 0:00:20.6]} 39... b3 {[%clk 0:00:35]} 40. Ng4 {[%clk
0:00:20.5]} 40... b2 {[%clk 0:00:32.8]} 41. Nxf6 {[%clk 0:00:20.6]} 41... Ba2
{[%clk 0:00:32.3]} 42. Rxb2 {[%clk 0:00:19.5]} 42... Nxb2 {[%clk 0:00:33.2]} 43.
Kg3 {[%clk 0:00:19.7]} 43... Nc4 {[%clk 0:00:30.3]} 44. f4 {[%clk 0:00:18]}
44... Nd6 {[%clk 0:00:30.9]} 45. h4 {[%clk 0:00:17.8]} 45... Ke7 {[%clk
0:00:27.9]} 46. Ng4 {[%clk 0:00:17.5]} 46... Nf5+ {[%clk 0:00:27.4]} 47. Kh3
{[%clk 0:00:18.1]} 47... Nxd4 {[%clk 0:00:27.9]} 48. Ne5 {[%clk 0:00:18.8]}
48... Be6+ {[%clk 0:00:27.8]} 49. Kh2 {[%clk 0:00:18.4]} 49... Nf5 {[%clk
0:00:27.7]} 50. h5 {[%clk 0:00:18]} 50... Nh6 {[%clk 0:00:26.9]} 51. Kg3 {[%clk
0:00:17.8]} 51... Kf6 {[%clk 0:00:27]} 52. Nc6 {[%clk 0:00:15.7]} 52... Nf5+
{[%clk 0:00:27.5]} 53. Kf3 {[%clk 0:00:15.4]} 53... Bd5+ {[%clk 0:00:27.9]} 54.
Kg4 {[%clk 0:00:14.9]} 54... Bxc6 {[%clk 0:00:28.8]} 55. h6 {[%clk 0:00:15.5]}
55... Nxh6+ {[%clk 0:00:29.3]} 0-1

[Event "Early-Titled-Tuesday-Blitz-June-18-2024"]
[Site "Chess.com"]
[Date "2024.06.18"]
[Round "1"]
[White "rionelG"]
[Black "SuperJesus88"]
[Result "0-1"]
[WhiteElo "2354"]
[BlackElo "2662"]
[TimeControl "180+1"]
[EndTime "8:07:35 PDT"]
[Termination "SuperJesus88 won on time"]

1. e4 {[%clk 0:03:00.9]} 1... d6 {[%clk 0:02:59.7]} 2. d4 {[%clk 0:03:00.5]}
2... Nf6 {[%clk 0:03:00.6]} 3. Nc3 {[%clk 0:02:59.5]} 3... e5 {[%clk 0:03:00.7]}
4. Nf3 {[%clk 0:02:58.6]} 4... Nbd7 {[%clk 0:03:00.1]} 5. Bc4 {[%clk 0:02:57.7]}
5... Be7 {[%clk 0:03:00.4]} 6. O-O {[%clk 0:02:56.9]} 6... O-O {[%clk
0:03:00.6]} 7. a4 {[%clk 0:02:56.7]} 7... c6 {[%clk 0:03:01]} 8. Qe2 {[%clk
0:02:55.1]} 8... a5 {[%clk 0:02:49.7]} 9. b3 {[%clk 0:02:43.4]} 9... Re8 {[%clk
0:02:48.4]} 10. dxe5 {[%clk 0:02:37.8]} 10... Nxe5 {[%clk 0:02:47]} 11. Nxe5
{[%clk 0:02:31.8]} 11... dxe5 {[%clk 0:02:47.3]} 12. Bb2 {[%clk 0:02:29.9]}
12... Qc7 {[%clk 0:02:47.5]} 13. f3 {[%clk 0:02:21.2]} 13... Bc5+ {[%clk
0:02:46.9]} 14. Kh1 {[%clk 0:02:20.5]} 14... Bd4 {[%clk 0:02:47.8]} 15. Nd1
{[%clk 0:02:18.2]} 15... Nh5 {[%clk 0:02:39.3]} 16. c3 {[%clk 0:02:05]} 16...
Ba7 {[%clk 0:02:36]} 17. Bc1 {[%clk 0:02:03.3]} 17... Nf4 {[%clk 0:02:31.2]} 18.
Qe1 {[%clk 0:01:58.3]} 18... Qe7 {[%clk 0:02:04.7]} 19. Be3 {[%clk 0:01:46]}
19... b6 {[%clk 0:02:01.5]} 20. Qg3 {[%clk 0:01:23.9]} 20... Qf6 {[%clk
0:01:59.4]} 21. Nf2 {[%clk 0:01:18.1]} 21... b5 {[%clk 0:01:55.5]} 22. Bxa7
{[%clk 0:01:04.4]} 22... bxc4 {[%clk 0:01:55.4]} 23. Be3 {[%clk 0:01:00.6]}
23... cxb3 {[%clk 0:01:55.6]} 24. Ng4 {[%clk 0:00:55.8]} 24... Bxg4 {[%clk
0:01:49.1]} 25. fxg4 {[%clk 0:00:55.1]} 25... Rab8 {[%clk 0:01:45.8]} 26. Bxf4
{[%clk 0:00:52]} 26... exf4 {[%clk 0:01:45.8]} 27. Rxf4 {[%clk 0:00:51.6]} 27...
Qe5 {[%clk 0:01:38.1]} 28. Rb1 {[%clk 0:00:48.2]} 28... Red8 {[%clk 0:01:37]}
29. Qf3 {[%clk 0:00:20.3]} 29... Qe6 {[%clk 0:01:21.7]} 30. h3 {[%clk
0:00:19.6]} 30... h6 {[%clk 0:01:13.3]} 31. Rf5 {[%clk 0:00:19.9]} 31... b2
{[%clk 0:01:11.6]} 32. Rxa5 {[%clk 0:00:18.1]} 32... Qa2 {[%clk 0:01:11.6]} 33.
Qf1 {[%clk 0:00:17.7]} 33... Rd2 {[%clk 0:01:09.2]} 34. Ra7 {[%clk 0:00:13.7]}
34... Rc2 {[%clk 0:01:06.1]} 35. Kh2 {[%clk 0:00:11.3]} 35... Qe6 {[%clk
0:00:47.7]} 36. a5 {[%clk 0:00:09.2]} 36... Kh8 {[%clk 0:00:41.6]} 37. a6 {[%clk
0:00:09.4]} 37... Qe5+ {[%clk 0:00:41.3]} 38. Kh1 {[%clk 0:00:09]} 38... Qxe4
{[%clk 0:00:39.8]} 39. Rb7 {[%clk 0:00:09.2]} 39... Ra8 {[%clk 0:00:34.2]} 40.
R7xb2 {[%clk 0:00:08.2]} 40... Rxb2 {[%clk 0:00:30.4]} 41. Rxb2 {[%clk
0:00:09.1]} 41... Rxa6 {[%clk 0:00:30.4]} 42. Rb8+ {[%clk 0:00:09]} 42... Kh7
{[%clk 0:00:30.1]} 43. Qf3 {[%clk 0:00:07.8]} 43... Ra1+ {[%clk 0:00:27.6]} 44.
Kh2 {[%clk 0:00:08.2]} 44... Qe5+ {[%clk 0:00:27.3]} 45. Qg3 {[%clk 0:00:08.7]}
45... Rh1+ {[%clk 0:00:26.2]} 46. Kxh1 {[%clk 0:00:06.7]} 46... Qxg3 {[%clk
0:00:27.1]} 0-1